bitfinex/quotes_ETHUSD_20220309
["timestamp","ask_amount","ask_price","bid_price","bid_amount"]
[1646787784571,1.08775735,2591.2,2590.9,1.14073299]
[1646787784971,1.08775735,2591.2,2591.0,0.00425771]
[1646787785771,1.08775735,2591.2,2590.9,1.14073299]
[1646787786216,1.08775735,2591.2,2591.0,0.00404478]
[1646787786805,0.12228735,2591.2,2591.0,0.00404478]
[1646787787006,0.12228735,2591.2,2590.9,1.14073299]
[1646787787206,0.12228735,2591.2,2591.0,0.00404478]
[1646787788210,0.12228735,2591.2,2590.5,0.555]
[1646787788412,0.12228735,2591.2,2590.5,4.444]
[1646787788613,0.12228735,2591.2,2591.0,1.18530142]
[1646787788810,1.08776735,2591.2,2591.0,1.18530142]
[1646787789412,1.08776735,2591.2,2591.0,1.18137799]
[1646787789611,1.08776735,2591.2,2591.0,1.18531896]
[1646787789812,0.12228735,2591.2,2591.0,1.18531896]
[1646787790071,0.12228735,2591.2,2591.1,3.5]
[1646787790268,0.12228735,2591.2,2591.0,1.18531896]
[1646787790669,0.12228735,2591.2,2591.0,1.18137799]
[1646787791069,0.12228735,2591.2,2591.0,1.18531891]
[1646787791869,0.12228735,2591.2,2590.6,0.389]
[1646787792270,0.12228735,2591.2,2591.0,0.00386393]
[1646787793076,0.12228735,2591.2,2590.9,1.17400469]
[1646787793280,0.36821233,2591.6,2591.0,0.00386545]
[1646787793476,0.1928,2591.5,2591.0,0.00386545]
[1646787794107,1.15817,2591.5,2591.0,0.00386545]
[1646787794308,1.15817,2591.5,2590.9,1.17400469]
[1646787794508,1.15817,2591.5,2591.1,0.00386531]
[1646787794918,0.96537,2591.5,2591.1,0.00386531]
[1646787795508,0.96537,2591.5,2590.5,0.389]
[1646787795711,0.9654994,2591.4,2591.2,0.00385337]
[1646787796012,1.2654994,2591.4,2591.2,0.00385337]
[1646787796611,2.65965813,2591.4,2590.6,1.18075423]
[1646787796811,2.27065813,2591.4,2591.2,0.00385573]
[1646787797011,0.3,2591.4,2591.2,0.00385573]
[1646787797212,0.4928,2591.5,2591.2,0.00385573]
[1646787797454,3.647,2591.7,2591.2,0.00385573]
[1646787797455,0.4928,2591.6,2591.2,0.00385573]
[1646787797658,0.1928,2591.6,2591.2,0.00385573]
[1646787797859,0.1928,2591.6,2590.6,1.18075423]
[1646787798257,0.1928,2591.6,2591.3,0.00385564]
[1646787798860,1.7032,2591.7,2591.3,0.00385564]
[1646787799061,1.7032,2591.7,2590.7,3.5]
[1646787799260,1.7032,2591.7,2591.3,0.0040615]
[1646787799460,0.3,2591.7,2591.3,0.0040615]
[1646787799860,0.3,2591.8,2591.3,0.0040615]
[1646787800259,0.3,2591.8,2590.7,3.5]
[1646787800461,0.3,2591.8,2591.4,0.00406145]
[1646787801409,0.3,2591.8,2591.0,1.19741137]
[1646787801608,1.93078,2591.6,2591.0,1.19741137]
[1646787801807,1.93078,2591.6,2591.5,0.0040614]
[1646787802712,1.93078,2591.6,2591.0,1.19741137]
[1646787802911,1.93078,2591.6,2591.4,0.00406579]
[1646787804011,1.93078,2591.6,2591.1,1.01538003]
[1646787804410,1.93078,2591.6,2591.4,0.00405891]
[1646787805055,1.93078,2591.6,2591.1,1.01538003]
[1646787805455,1.93078,2591.6,2591.4,0.00405891]
[1646787806259,1.93078,2591.6,2591.1,1.01538003]
[1646787806656,1.93078,2591.6,2591.4,0.00405891]
[1646787807457,1.93078,2591.6,2591.4,1.10292134]
[1646787807863,1.93078,2591.6,2591.4,1.10698111]
[1646787808261,2.8961683,2591.6,2591.4,1.10698111]
[1646787808717,2.8961683,2591.6,2590.7,3.5]
[1646787808718,3.1961683,2591.6,2590.7,3.5]
[1646787808907,3.1961683,2591.6,2591.4,0.00405977]
[1646787809807,3.1961683,2591.6,2590.2,1.555]
[1646787809808,3.1961683,2591.6,2591.2,1.01807566]
[1646787810006,3.1961683,2591.6,2590.8,1.00052576]
[1646787810007,0.9655,2591.3,2590.8,1.00052576]
[1646787810208,0.9655,2591.3,2590.9,1.01937881]
[1646787811412,0.9655,2591.3,2591.0,0.00393136]
[1646787812212,0.9655,2591.3,2590.9,1.01937881]
[1646787812666,0.9655,2591.3,2591.0,0.00393131]
[1646787812866,0.9655,2591.3,2591.2,0.9813549]
[1646787813067,0.9655,2591.3,2591.2,2.00073371]
[1646787813268,0.3,2591.4,2591.2,2.00073371]
[1646787813469,0.3,2591.4,2591.3,1.01937881]
[1646787813667,1.51130302,2591.6,2591.3,1.01937881]
[1646787813867,1.51130302,2591.6,2591.4,1.01937881]
[1646787814067,1.51130302,2591.6,2591.5,1.01937881]
[1646787814470,2.08102979,2591.6,2591.5,1.01937881]
[1646787815269,2.08102979,2591.6,2591.5,4.51937881]
[1646787815270,0.56972677,2591.6,2591.5,4.51937881]
[1646787815472,2.89623,2592.0,2591.5,1.01937881]
[1646787815473,0.96504,2592.0,2591.5,1.01937881]
[1646787815672,0.57026613,2591.9,2591.6,1.01937881]
[1646787815870,0.96504,2592.0,2591.7,1.01937881]
[1646787816071,0.57755404,2591.9,2591.8,1.01937881]
[1646787817819,0.96504,2592.0,2591.8,1.01937881]
[1646787818016,0.96504,2592.0,2591.9,1.01937881]
[1646787818216,1.54256125,2592.0,2591.9,1.01937881]
[1646787818518,0.57752125,2592.0,2591.9,1.01937881]
[1646787824213,1.93031,2592.1,2591.9,1.01937881]
[1646787824412,1.93031,2592.1,2592.0,1.01937881]
[1646787824613,2.50780862,2592.1,2592.0,1.01937881]
[1646787826613,2.50780862,2592.1,2592.0,4.51937881]
[1646787826812,2.50764846,2592.1,2592.0,1.01937881]
[1646787827666,2.50764846,2592.1,2591.5,0.6988456]
[1646787827861,1.93031,2592.1,2591.5,0.6988456]
[1646787828464,1.93031,2592.1,2591.3,0.1928]
[1646787828465,2.89548,2592.1,2591.3,0.1928]
[1646787828666,2.89584,2591.9,2591.3,0.1928]
[1646787829263,3.19584,2591.9,2591.3,0.1928]
[1646787830063,0.96531,2591.8,2591.3,0.1928]
[1646787830265,0.96525,2591.7,2591.3,0.1928]
[1646787831711,0.96525,2591.7,2591.4,0.00435313]
[1646787832714,0.96525,2591.7,2591.3,0.1928]
[1646787832916,0.96525,2591.7,2591.4,0.00435308]
[1646787833314,0.96531,2591.8,2591.4,0.00435308]
[1646787833915,0.96531,2591.8,2591.3,0.1928]
[1646787834115,0.96531,2591.8,2591.5,0.00435303]
[1646787834715,0.96531,2591.8,2591.3,0.1928]
[1646787834961,0.96522,2591.7,2591.3,0.1928]
[1646787835465,0.96522,2591.7,2591.0,1.88098128]
[1646787836561,0.96522,2591.7,2591.2,0.00264871]
[1646787836761,0.96522,2591.7,2591.0,1.88098128]
[1646787839008,0.96522,2591.7,2591.1,0.6988456]
[1646787840710,0.96522,2591.7,2591.0,1.88098128]
[1646787841309,0.96522,2591.7,2591.1,0.00435353]
[1646787841519,0.555,2591.6,2591.1,0.00435353]
[1646787841711,2.89667,2591.5,2591.1,0.00435353]
[1646787841911,0.555,2591.4,2591.1,0.00435353]
[1646787842112,0.555,2591.4,2590.4,0.6988456]
[1646787842113,2.5,2591.3,2590.4,0.6988456]
[1646787842309,0.944,2591.4,2590.3,0.6988456]
[1646787842310,0.96571,2591.1,2590.3,0.6988456]
[1646787842563,1.83639053,2591.1,2590.3,0.95599147]
[1646787842764,2.13639053,2591.1,2590.3,0.95599147]
[1646787843166,0.9656886,2591.0,2590.3,0.95599147]
[1646787843363,2.89706,2590.9,2590.3,0.95599147]
[1646787843564,0.96568,2590.7,2590.3,0.95599147]
[1646787843765,1.9314,2590.7,2590.3,0.95599147]
[1646787844966,1.9314,2590.7,2590.2,0.6988456]
[1646787845566,1.9314,2590.7,2590.1,0.6988456]
[1646787846220,1.9314,2590.7,2590.3,0.00433178]
[1646787847108,5.4314,2590.7,2590.0,0.6988456]
[1646787847308,1.9314,2590.7,2590.0,0.6988456]
[1646787847712,1.9314,2590.7,2590.3,0.96742879]
[1646787847713,0.96572,2590.7,2590.3,0.96742879]
[1646787847914,0.193,2590.6,2590.3,0.96742879]
[1646787848114,0.193,2590.6,2590.4,0.9240312]
[1646787848316,0.96572,2590.7,2590.4,0.9240312]
[1646787848514,2.89706,2590.9,2590.4,0.9240312]
[1646787848714,2.89706,2590.9,2590.8,0.97233027]
[1646787848915,2.89706,2590.9,2590.8,1.89636147]
[1646787849615,3.19706,2590.9,2590.8,1.89636147]
[1646787853274,1.51151817,2590.9,2590.8,1.89636147]
[1646787854006,0.96537,2591.0,2590.8,1.89636147]
[1646787854207,2.7059,2591.4,2590.9,0.9240312]
[1646787854208,0.1928,2591.4,2590.9,0.9240312]
[1646787854408,0.1928,2591.4,2591.0,0.9240312]
[1646787854609,4.1039,2591.6,2591.1,0.9240312]
[1646787854610,0.1928,2591.5,2591.1,0.9240312]
[1646787854809,0.21284945,2591.5,2591.2,0.9240312]
[1646787855008,0.02004945,2591.5,2591.3,0.9240312]
[1646787855212,1.95077945,2591.5,2591.4,0.9240312]
[1646787855408,2.25077945,2591.5,2591.4,0.9240312]
[1646787855608,2.23073,2591.5,2591.4,0.9240312]
[1646787855808,2.23474463,2591.5,2591.4,0.9240312]
[1646787856710,2.23073,2591.5,2591.4,0.9240312]
[1646787857111,2.42353,2591.5,2591.4,0.9240312]
[1646787857313,2.42353,2591.5,2591.2,1.09344912]
[1646787857563,2.42353,2591.5,2591.3,0.88726593]
[1646787857763,2.23073,2591.5,2591.3,0.88726593]
[1646787858167,2.23476933,2591.5,2591.3,0.88726593]
[1646787859065,2.23073,2591.5,2591.3,0.88726593]
[1646787859665,2.23469359,2591.5,2591.3,0.88726593]
[1646787860467,2.23073,2591.5,2591.3,0.88726593]
[1646787860667,2.23468982,2591.5,2591.3,0.88726593]
[1646787861513,2.23073,2591.5,2591.3,0.88726593]
[1646787861711,2.23468982,2591.5,2591.3,0.88726593]
[1646787862717,2.23073,2591.5,2591.3,0.88726593]
[1646787862917,2.23443702,2591.5,2591.3,0.88726593]
[1646787864018,2.23443702,2591.5,2590.6,3.4543]
[1646787864019,2.23073,2591.5,2590.6,3.4543]
[1646787864220,0.67491825,2591.4,2590.7,0.88745136]
[1646787864420,1.93095,2591.3,2590.8,0.88745136]
[1646787864620,1.93095,2591.3,2590.9,0.88745136]
[1646787864819,1.93095,2591.3,2590.5,0.6988456]
[1646787864820,1.93095,2591.3,2591.0,0.88745136]
[1646787865065,1.93095,2591.3,2591.1,0.88745136]
[1646787865264,39.73797064,2591.0,2590.7,1.05042022]
[1646787865564,40.70344064,2591.0,2590.8,0.88761676]
[1646787866566,40.70344064,2591.0,2590.9,0.88761676]
[1646787873368,39.01791563,2591.0,2590.9,0.88761676]
[1646787874273,39.98338563,2591.0,2590.9,0.88761676]
[1646787874871,40.70788059,2591.0,2590.9,0.88761676]
[1646787881067,40.70788059,2591.0,2590.3,0.00374926]
[1646787881068,40.90068059,2591.0,2590.3,0.00374926]
[1646787881267,0.72449496,2590.9,2590.3,0.70259486]
[1646787881470,0.72449496,2590.9,2590.4,0.6988456]
[1646787881869,0.72449496,2590.9,2590.7,0.90306308]
[1646787882068,0.72449496,2590.9,2590.8,0.84279193]
[1646787882873,39.31791563,2591.0,2590.8,0.84279193]
[1646787883073,39.01791563,2591.0,2590.8,0.84279193]
[1646787883728,39.01791563,2591.0,2590.9,0.84279193]
[1646787884016,39.74304863,2591.0,2590.5,1.54163753]
[1646787884216,39.01791563,2591.0,2590.6,0.84279193]
[1646787884420,39.01791563,2591.0,2590.5,0.6988456]
[1646787884421,39.01791563,2591.0,2590.7,0.84279193]
[1646787884616,39.01791563,2591.0,2590.2,0.93179413]
[1646787884617,0.72518771,2590.9,2590.8,0.84279193]
[1646787884817,0.72518771,2590.9,2590.4,0.6988456]
[1646787885116,2.65633771,2590.9,2590.4,0.6988456]
[1646787885317,0.72518771,2590.8,2590.5,0.84279193]
[1646787885517,0.72518771,2590.8,2590.6,0.84279193]
[1646787885718,1.63375701,2590.8,2590.2,0.6988456]
[1646787886020,0.72541837,2590.7,2590.3,0.84680758]
[1646787886218,0.72541837,2590.7,2590.4,0.84279193]
[1646787886424,0.72541837,2590.7,2590.5,0.84279193]
[1646787886624,0.72541837,2590.7,2590.6,0.84279193]
[1646787886826,0.72541837,2590.7,2590.1,0.84279193]
[1646787887027,0.72541837,2590.7,2590.3,0.00401561]
[1646787887468,5.19115837,2590.7,2590.3,0.00401561]
[1646787887671,0.72541837,2590.6,2590.3,0.84680754]
[1646787887872,0.96579,2590.5,2590.4,0.84279193]
[1646787888072,1.69120837,2590.5,2590.4,0.84276262]
[1646787888273,5.19120837,2590.5,2590.4,0.84276262]
[1646787888474,2.5,2590.4,2589.8,0.6988456]
[1646787888673,0.96588,2590.3,2589.8,0.6988456]
[1646787888972,0.96588,2590.2,2589.8,0.6988456]
[1646787889172,0.96588,2590.2,2589.7,0.6988456]
[1646787889173,1.86467292,2590.2,2589.7,0.6988456]
[1646787890974,0.96588,2590.2,2589.7,0.6988456]
[1646787891818,0.96588,2590.2,2589.8,0.00261589]
[1646787892822,0.96588,2590.2,2589.7,0.6988456]
[1646787893022,0.96588,2590.2,2589.9,0.00433218]
[1646787893424,0.3,2590.3,2589.9,0.00433218]
[1646787893722,1.1838,2590.7,2589.9,0.70317778]
[1646787893921,1.93133,2590.4,2590.3,1.18711777]
[1646787895170,1.93133,2590.4,2589.9,0.6988456]
[1646787895367,2.23133,2590.4,2589.9,0.6988456]
[1646787895567,2.23133,2590.4,2590.2,0.00433191]
[1646787896368,2.23133,2590.4,2590.1,0.89085169]
[1646787896768,2.23133,2590.4,2590.2,0.00418568]
[1646787897572,2.23133,2590.4,2590.1,0.89085169]
[1646787897773,2.23133,2590.4,2589.8,0.6988456]
[1646787897972,2.23133,2590.4,2590.2,0.00418568]
[1646787900023,2.23133,2590.4,2590.1,1.16333765]
[1646787900219,2.23133,2590.4,2590.2,0.0040097]
[1646787901223,2.23133,2590.4,2590.1,1.16333765]
[1646787901422,2.23133,2590.4,2590.2,0.0040097]
[1646787902574,2.23133,2590.4,2589.8,0.6988456]
[1646787902771,2.23133,2590.4,2590.2,0.0040097]
[1646787903773,2.23133,2590.4,2589.6,0.75065107]
[1646787903974,2.23133,2590.4,2590.2,0.00401696]
[1646787904174,0.96484486,2590.3,2590.2,0.00401696]
[1646787904773,0.96484486,2590.3,2589.6,0.75065107]
[1646787905176,0.96484486,2590.3,2590.1,0.00401701]
[1646787905975,1.93169,2590.2,2589.6,0.75065107]
[1646787906425,1.93169,2590.2,2590.1,0.00401705]
[1646787907223,1.93169,2590.2,2589.6,0.75065107]
[1646787907423,1.93169,2590.2,2590.0,0.00401661]
[1646787907424,5.43169,2590.2,2590.0,0.00401661]
[1646787907627,5.43169,2590.2,2589.2,0.6988456]
[1646787907628,4.46606,2590.1,2589.2,0.6988456]
[1646787907831,5.51406,2590.1,2589.1,1.8608456]
[1646787908026,5.51406,2590.1,2589.1,0.6988456]
[1646787908027,0.9661,2589.9,2589.1,0.6988456]
[1646787908428,0.9661,2589.9,2589.1,1.70515371]
[1646787908627,0.78746376,2589.8,2589.2,0.77932105]
[1646787908829,0.9661,2589.9,2589.2,0.77932105]
[1646787909227,0.9661,2589.9,2589.2,1.47816665]
[1646787909827,0.9661,2589.9,2589.3,0.77932105]
[1646787910067,0.9661,2589.9,2589.4,0.77932105]
[1646787910266,0.9661,2589.9,2589.5,0.77932105]
[1646787910470,0.9661,2589.9,2589.2,1.47816665]
[1646787910667,0.9661,2589.9,2589.3,0.77932105]
[1646787910867,0.9661,2589.9,2589.4,0.77932105]
[1646787911067,0.9661,2589.9,2589.5,0.77932105]
[1646787911271,0.9661,2589.9,2589.6,0.78193418]
[1646787911567,0.9661,2589.9,2589.7,0.77932105]
[1646787911767,2.9661,2589.9,2589.8,0.77932105]
[1646787912169,2.9661,2589.9,2589.3,0.77932105]
[1646787912369,2.9661,2589.9,2589.4,0.77932105]
[1646787912572,2.9661,2589.9,2589.2,0.77932105]
[1646787912775,2.9661,2589.9,2589.1,1.70515371]
[1646787912776,2.9661,2589.9,2589.3,0.77932105]
[1646787912976,2.9661,2589.9,2589.4,0.77932105]
[1646787913174,3.5,2589.8,2589.5,0.77932105]
[1646787913375,3.2661,2589.9,2589.8,1.68646316]
[1646787913574,4.0531778,2589.9,2589.8,1.68646316]
[1646787913846,3.9461778,2589.9,2589.8,1.68646316]
[1646787914045,2.9800778,2589.9,2589.8,1.68646316]
[1646787914246,2.0,2589.8,2588.9,3.4526]
[1646787914444,0.7870778,2589.7,2589.0,0.74754713]
[1646787915245,0.7870778,2589.7,2589.1,0.74754713]
[1646787915450,0.7870778,2589.7,2589.6,1.06663714]
[1646787915649,2.0,2589.9,2589.6,1.81418427]
[1646787915852,2.0,2589.9,2589.7,0.74754713]
[1646787916046,2.0,2589.9,2589.8,0.74754713]
[1646787916546,2.0,2589.9,2589.4,0.74754713]
[1646787916747,3.22838374,2589.9,2589.4,0.74754713]
[1646787916949,3.22838374,2589.9,2589.2,0.74754713]
[1646787917146,3.22838374,2589.9,2589.7,0.00431118]
[1646787917347,3.22838374,2589.9,2589.8,0.74674348]
[1646787917569,3.22838374,2589.9,2589.7,0.00431118]
[1646787917768,3.22838374,2589.9,2589.8,0.74687754]
[1646787918176,2.0,2589.9,2589.8,0.74687754]
[1646787918368,2.0,2589.9,2589.7,0.00431123]
[1646787918570,2.0,2589.9,2589.8,0.74687754]
[1646787919671,2.0,2589.9,2589.4,0.6988456]
[1646787919672,2.0,2589.9,2589.7,0.00431118]
[1646787919871,2.0,2589.9,2589.8,0.74687754]
[1646787920676,2.0,2589.9,2589.7,0.00418185]
[1646787921821,2.0,2589.9,2589.7,0.74687754]
[1646787922019,2.0,2589.9,2589.8,0.74687754]
[1646787926179,2.0,2589.9,2589.7,1.44970837]
[1646787926578,2.0,2589.9,2589.7,1.44572314]
[1646787926778,2.0,2589.9,2589.8,3.5]
[1646787926978,2.0,2589.9,2589.8,4.24687754]
[1646787928582,2.0,2589.9,2589.8,0.74687754]
[1646787929222,2.0,2589.9,2589.6,1.6988456]
[1646787929420,0.96571,2590.2,2589.7,0.74435125]
[1646787929621,0.96571,2590.2,2589.8,0.74435125]
[1646787929853,0.96571,2590.2,2589.9,0.74435125]
[1646787930120,0.96571,2590.2,2590.0,0.74435125]
[1646787930521,0.96571,2590.2,2590.1,0.74435125]
[1646787930723,1.81626867,2590.2,2590.1,0.74435125]
[1646787933176,0.96571,2590.2,2590.1,0.74435125]
[1646787933579,0.10239294,2590.3,2590.1,0.74435125]
[1646787933776,1.93136,2590.5,2590.2,0.74435125]
[1646787933975,0.87236953,2590.4,2590.3,0.74435125]
[1646787942982,0.87236953,2590.4,2589.7,1.33547977]
[1646787943182,1.93149,2590.3,2589.6,1.32508241]
[1646787943382,1.93149,2590.3,2589.5,2.4355]
[1646787943583,3.57329,2590.3,2589.3,0.70353727]
[1646787943825,4.77969,2590.3,2589.3,0.70353727]
[1646787944022,8.27969,2590.3,2589.3,0.70353727]
[1646787944522,8.27969,2590.3,2589.3,1.87817903]
[1646787944723,8.27969,2590.3,2589.3,0.70353727]
[1646787945727,8.98808019,2590.3,2589.2,1.94813727]
[1646787946128,1.21750306,2589.7,2589.2,1.94813727]
[1646787946332,2.18345306,2589.7,2589.2,0.70353727]
[1646787946628,2.48345306,2589.7,2589.2,0.70353727]
[1646787947230,1.26595,2589.7,2589.2,0.70353727]
[1646787947471,1.26595,2589.7,2589.3,0.0043072]
[1646787947677,1.26595,2589.7,2589.3,0.70784447]
[1646787947877,1.15433,2589.7,2589.3,0.66545447]
[1646787948078,1.15433,2589.7,2589.0,0.93179413]
[1646787948477,1.0983,2589.7,2589.0,0.93179413]
[1646787949078,0.7983,2589.7,2589.0,0.93179413]
[1646787949680,0.7983,2589.7,2588.9,0.93179413]
[1646787949881,1.58746028,2589.9,2589.2,1.93175]
[1646787950081,1.19846028,2589.9,2589.2,1.93175]
[1646787950279,1.19846028,2589.9,2589.2,2.23175]
[1646787950881,1.19846028,2589.9,2589.2,3.100604]
[1646787951553,1.19846028,2589.9,2589.2,4.066484]
[1646787951750,0.193,2589.9,2589.2,4.066484]
[1646787951951,0.193,2589.9,2589.2,4.07079151]
[1646787952152,1.228,2590.0,2589.2,5.07079151]
[1646787952553,0.21022249,2590.3,2589.3,3.5]
[1646787952752,0.21022249,2590.3,2589.6,0.96559]
[1646787952953,4.0446,2590.5,2589.6,0.96559]
[1646787952954,0.193,2590.4,2589.6,0.96559]
[1646787953954,0.193,2590.4,2589.7,2.8968]
[1646787954154,0.193,2590.4,2589.8,0.96562]
[1646787954355,4.2376,2590.5,2590.0,0.96566]
[1646787954653,0.193,2590.5,2590.0,0.96566]
[1646787954852,1.1904,2590.7,2590.0,0.96566]
[1646787954853,0.193,2590.6,2590.0,0.96566]
[1646787955077,0.193,2590.6,2590.0,1.86829194]
[1646787955479,0.193,2590.6,2590.0,0.96566]
[1646787955678,0.00172842,2590.4,2590.0,0.96566]
[1646787956479,0.193,2590.6,2590.0,0.96566]
[1646787956880,0.00430602,2590.3,2590.0,0.96566]
[1646787957681,0.193,2590.6,2590.0,0.96566]
[1646787957883,0.90176521,2590.6,2590.0,0.96566]
[1646787958082,0.00430607,2590.3,2590.0,0.96566]
[1646787958931,0.90176521,2590.6,2590.0,0.96566]
[1646787959130,0.193,2590.6,2590.0,0.96566]
[1646787959334,0.00430607,2590.3,2590.0,0.96566]
[1646787960133,0.193,2590.6,2590.0,0.96566]
[1646787960335,0.00430607,2590.3,2590.0,1.9313]
[1646787960536,1.20762169,2590.7,2590.3,0.00375848]
[1646787960838,1.20762169,2590.7,2590.3,0.96913848]
[1646787961034,4.62660092,2590.9,2590.3,0.96913848]
[1646787961035,3.91783571,2590.9,2590.3,0.96913848]
[1646787961235,1.20653571,2590.9,2590.3,0.96913848]
[1646787961837,1.20653571,2590.9,2590.6,2.07485191]
[1646787962133,1.20653571,2590.9,2590.7,0.96533]
[1646787962579,39.01791563,2591.0,2590.7,0.96533]
[1646787963081,0.89184928,2590.9,2590.8,0.67884503]
[1646787963582,39.01791563,2591.0,2590.8,0.67884503]
[1646787964081,33.22867759,2591.0,2590.8,0.67884503]
[1646787964483,27.43752759,2591.0,2590.8,0.67884503]
[1646787965084,27.43580563,2591.0,2590.8,0.67884503]
[1646787965282,27.44011516,2591.0,2590.8,0.67884503]
[1646787966329,27.43580563,2591.0,2590.8,0.67884503]
[1646787966527,27.44011516,2591.0,2590.8,0.67884503]
[1646787967429,27.43580563,2591.0,2590.8,0.67884503]
[1646787967630,27.44011516,2591.0,2590.8,0.67884503]
[1646787968432,27.44011516,2591.0,2590.8,1.64411503]
[1646787968632,27.43580563,2591.0,2590.8,0.96527]
[1646787968831,21.64926269,2591.0,2590.8,0.96527]
[1646787969238,21.64926269,2591.0,2590.9,1.1331296]
[1646787969432,15.85847269,2591.0,2590.9,1.1331296]
[1646787969836,15.85418563,2591.0,2590.9,1.1331296]
[1646787970080,10.06346563,2591.0,2590.9,1.1331296]
[1646787972081,10.06346563,2591.0,2590.8,0.96527]
[1646787973483,10.06346563,2591.0,2590.9,1.18337374]
[1646787973723,10.06756677,2591.0,2590.9,1.18337374]
[1646787974629,10.06346563,2591.0,2590.9,1.18337374]
[1646787975832,10.06346563,2591.0,2590.8,0.3]
[1646787976032,10.06346563,2591.0,2590.7,1.26533]
[1646787976233,10.06346563,2591.0,2590.7,0.96533]
[1646787977235,10.06750204,2591.0,2590.7,2.06587356]
[1646787977691,10.06750204,2591.0,2590.8,0.96521]
[1646787978292,10.06346563,2591.0,2590.8,0.96521]
[1646787978689,10.06750199,2591.0,2590.8,0.96521]
[1646787978890,10.06750199,2591.0,2590.8,5.23055438]
[1646787979489,10.06346563,2591.0,2590.8,5.23055438]
[1646787979689,10.06716161,2591.0,2590.8,5.23055438]
[1646787980591,8.37791378,2591.0,2590.8,5.23055438]
[1646787980789,8.38160976,2591.0,2590.8,5.23055438]
[1646787981826,8.37791378,2591.0,2590.8,4.26534438]
[1646787982028,8.38160976,2591.0,2590.8,4.26534438]
[1646787982534,3.5,2590.9,2590.8,4.26534438]
[1646787982731,8.38160976,2591.0,2590.8,4.26534438]
[1646787982933,8.38160976,2591.0,2590.5,0.00369673]
[1646787983130,8.38160976,2591.0,2590.3,0.00375848]
[1646787983131,1.02999671,2590.9,2590.3,0.00375848]
[1646787983331,2.19659671,2590.9,2590.5,0.00371265]
[1646787983837,1.02999671,2590.9,2590.5,0.00371265]
[1646787984231,1.02999671,2590.9,2590.4,0.6610567]
[1646787984432,0.0037121,2590.8,2590.5,0.66476927]
[1646787984631,0.0037121,2590.8,2590.5,0.00371257]
[1646787985512,8.37791378,2591.0,2590.4,0.66105732]
[1646787985709,0.00371208,2590.8,2590.5,0.66476986]
[1646787985912,0.00371208,2590.8,2590.5,0.00371254]
[1646787986710,9.47317952,2591.0,2590.4,0.6610504]
[1646787986916,0.00370904,2590.8,2590.5,0.00370951]
[1646787987916,0.90220747,2590.9,2590.4,0.66100737]
[1646787988119,0.90220747,2590.9,2590.5,0.00370951]
[1646787988120,0.00370904,2590.8,2590.5,0.00370951]
[1646787988926,0.90220747,2590.9,2590.4,0.66111677]
[1646787989128,0.90220747,2590.9,2590.3,0.66487525]
[1646787989327,0.00370904,2590.8,2590.5,0.00370951]
[1646787990129,1.09891651,2590.8,2590.5,0.00370951]
[1646787990327,1.09891651,2590.8,2590.3,0.00375848]
[1646787990328,0.90220747,2590.7,2590.3,0.00375848]
[1646787990529,0.90220747,2590.7,2590.5,0.00372141]
[1646787991229,0.90220747,2590.6,2590.5,0.00372141]
[1646787991428,0.90220747,2590.6,2590.3,0.00375848]
[1646787991628,0.90220747,2590.6,2590.5,0.00373148]
[1646787991829,0.90220747,2590.7,2590.5,0.00373148]
[1646787992681,0.90220747,2590.7,2590.3,0.00375848]
[1646787992879,0.90220747,2590.7,2590.5,0.00373148]
[1646787993782,0.90220747,2590.7,2590.3,0.00375848]
[1646787993981,0.90220747,2590.7,2590.5,0.00372956]
[1646787994581,0.90593651,2590.8,2590.5,0.00372956]
[1646787994983,0.90593651,2590.8,2590.3,0.00375848]
[1646787994984,0.90220747,2590.8,2590.3,0.00375848]
[1646787995383,0.90220747,2590.8,2590.5,0.00372767]
[1646787995384,0.90593467,2590.8,2590.5,0.00372767]
[1646787995886,0.90593467,2590.8,2590.5,3.50372767]
[1646787996085,0.90593467,2590.8,2590.6,0.66209348]
[1646787996327,0.90220747,2590.8,2590.6,0.66209348]
[1646787996526,0.90220747,2590.7,2590.6,1.68665062]
[1646787996927,0.0037272,2590.8,2590.6,1.68665062]
[1646787997132,0.0037272,2590.8,2590.5,0.00372767]
[1646787997331,0.0037272,2590.8,2590.5,0.66217901]
[1646787997531,0.90220747,2590.9,2590.5,0.65845134]
[1646787997732,0.0037275,2590.8,2590.5,0.66217931]
[1646787998331,0.0037275,2590.8,2590.6,0.65845134]
[1646787998533,0.0037275,2590.8,2590.5,0.00372797]
[1646787998731,0.90220747,2590.9,2590.4,0.65865625]
[1646787998933,0.00372774,2590.8,2590.5,0.66238445]
[1646787999232,0.00372774,2590.8,2590.6,0.65863549]
[1646787999432,0.00372774,2590.8,2590.5,0.0037282]
[1646787999832,0.90220747,2590.9,2590.4,1.62405328]
[1646788000079,0.00372774,2590.8,2590.5,0.66232148]
[1646788000978,0.90220747,2590.9,2590.5,0.65859328]
[1646788001377,0.0037277,2590.8,2590.5,0.66232145]
[1646788002179,0.90220747,2590.9,2590.5,0.65859328]
[1646788002582,0.00372766,2590.8,2590.5,0.66232141]
[1646788003384,0.85593513,2590.9,2590.5,0.65859328]
[1646788003586,0.85593513,2590.9,2590.5,0.66232141]
[1646788003834,0.00372766,2590.8,2590.5,0.66232141]
[1646788004633,0.85593513,2590.9,2590.3,0.00375848]
[1646788006134,0.86962869,2590.6,2590.3,0.00375848]
[1646788007133,1.90406521,2590.8,2590.3,0.00375848]
[1646788007334,1.1953,2590.8,2590.3,0.96929848]
[1646788007581,0.9031985,2590.9,2590.3,0.96929848]
[1646788007980,0.19443329,2590.9,2590.3,0.96929848]
[1646788008180,0.193,2590.9,2590.3,0.96929848]
[1646788008583,1.20059554,2590.9,2590.5,0.00403467]
[1646788008886,0.00062709,2590.4,2590.3,0.96929848]
[1646788011938,0.00062709,2590.4,2590.3,4.46929848]
[1646788012331,0.00062709,2590.4,2590.3,0.96929848]
[1646788016784,0.00062709,2590.4,2590.3,4.46929848]
[1646788018384,0.00062709,2590.4,2590.3,0.96929848]
[1646788021339,0.00062709,2590.4,2590.3,0.00375848]
[1646788023584,0.00062709,2590.4,2590.3,0.66388877]
[1646788024184,0.00062709,2590.4,2590.3,0.00375848]
[1646788024386,0.00062709,2590.4,2590.3,0.66388877]
[1646788025187,0.00062709,2590.4,2590.3,0.00375848]
[1646788025588,0.00062709,2590.4,2590.3,0.66388877]
[1646788026238,0.00062709,2590.4,2590.3,4.16388877]
[1646788028735,0.00062709,2590.4,2590.3,5.55288877]
[1646788028937,0.91533479,2590.6,2590.4,5.389]
[1646788029234,0.00399455,2590.8,2590.5,5.8293363]